bitfinex-derivatives/quotes_ETHF0:USTF0_20260316
["timestamp","ask_amount","ask_price","bid_price","bid_amount"]
[1773693660720,5.597,2341.5,2340.6,1.21779456]
[1773693660925,5.18230625,2341.4,2340.6,1.21779456]
[1773693663023,0.00535791,2341.6,2340.6,1.21779456]
[1773693664427,0.00535791,2341.6,2340.8,1.20346585]
[1773693671534,0.00535791,2341.6,2340.6,1.22269751]
[1773693676925,0.00535791,2341.6,2340.8,1.21892658]
[1773693678129,1.29728179,2341.4,2340.8,1.21892658]
[1773693678330,1.29728179,2341.2,2340.8,1.21892658]
[1773693678532,1.29728179,2341.4,2340.8,1.21892658]
[1773693678932,0.93287552,2341.1,2340.6,1.00821373]
[1773693679133,1.3026397,2341.6,2340.0,1.00423608]
[1773693679134,0.93287552,2340.9,2340.0,1.00423608]
[1773693679332,1.29728179,2341.0,2340.0,1.00423608]
[1773693679632,0.93287552,2341.3,2340.6,1.00423608]
[1773693680031,0.93287552,2341.3,2340.6,1.00807194]
[1773693685941,1.2207605,2341.1,2340.6,1.00807194]
[1773693686135,1.2207605,2341.5,2340.6,1.00807194]
[1773693686337,6.45040445,2341.4,2340.6,1.00807194]
[1773693686641,1.2207605,2341.4,2340.6,1.00807194]
[1773693687738,1.2207605,2341.5,2340.6,1.00807194]
[1773693687938,1.2207605,2341.3,2340.6,1.00807194]
[1773693688338,1.2207605,2341.1,2340.6,1.00807194]
[1773693688735,1.2207605,2341.3,2340.6,1.00807194]
[1773693689743,1.2207605,2341.5,2340.8,1.16553537]
[1773693691345,1.2207605,2341.3,2340.6,1.16937123]
[1773693695443,1.2207605,2341.1,2340.6,1.16937123]
[1773693695945,1.2207605,2341.1,2340.6,0.00383586]
[1773693696144,1.2207605,2341.1,2340.5,1.16553537]
[1773693696448,1.2207605,2341.1,2340.0,1.16553537]
[1773693697148,1.2207605,2341.1,2340.0,1.1690874]
[1773693697543,1.2207605,2341.1,2340.2,1.16553537]
[1773693698545,1.29728179,2340.8,2340.0,1.1690874]
[1773693698845,1.2207605,2340.7,2340.0,1.1690874]
[1773693699046,1.2207605,2340.5,2340.0,1.1690874]
[1773693699250,1.2207605,2340.4,2339.8,1.16553537]
[1773693700249,1.2207605,2340.4,2339.8,1.17077771]
[1773693700847,1.2207605,2340.2,2339.8,0.00524234]
[1773693701047,1.2207605,2340.2,2339.6,1.16553537]
[1773693701450,1.2207605,2340.2,2339.2,1.16553537]
[1773693701648,1.2207605,2340.2,2339.3,1.16553537]
[1773693702156,1.2207605,2340.2,2339.3,1.16981787]
[1773693704251,1.2207605,2340.0,2339.3,1.16981787]
[1773693705046,1.2207605,2339.7,2339.3,0.0042825]
[1773693705352,1.2207605,2339.7,2339.1,1.16553537]
[1773693705651,1.2207605,2339.7,2337.5,8.78765485]
[1773693705652,1.2207605,2339.1,2338.5,1.16553537]
[1773693706258,1.22619703,2339.1,2338.5,1.16896145]
[1773693711563,1.22619703,2339.1,2338.1,1.16553537]
[1773693712457,1.22619703,2339.1,2338.1,1.17105268]
[1773693713858,1.22619703,2339.1,2338.2,0.21382]
[1773693714158,1.22619703,2339.1,2338.3,1.14816824]
[1773693714359,1.22619703,2339.1,2338.1,1.15368555]
[1773693719261,1.44018956,2339.1,2338.1,1.15368555]
[1773693724070,1.44018956,2339.1,2337.3,1.12325275]
[1773693724071,1.18354371,2338.8,2337.3,1.12325275]
[1773693725068,1.18354371,2338.8,2337.3,1.12716844]
[1773693725969,1.18354371,2338.8,2337.7,1.12325275]
[1773693727571,1.18354371,2338.8,2337.9,1.12325275]
[1773693727767,1.18354371,2338.8,2337.4,1.12325275]
[1773693728270,1.18354371,2338.6,2337.4,1.12325275]
[1773693728775,1.18354371,2338.3,2337.4,1.12325275]
[1773693730468,1.18354371,2338.1,2337.4,1.12325275]
[1773693731470,2.48478244,2338.2,2337.4,1.12325275]
[1773693731776,1.18354371,2338.2,2337.4,1.12325275]
[1773693738983,1.18354371,2338.0,2337.3,0.63027734]
[1773693739281,1.18354371,2337.8,2336.9,0.62636165]
[1773693739987,1.18354371,2337.6,2336.9,0.62636165]
[1773693740386,1.18354371,2337.6,2336.9,0.63189557]
[1773693741577,1.18354371,2337.8,2336.9,0.63189557]
[1773693756399,1.18354371,2337.8,2337.3,0.56267374]
[1773693756600,1.16940223,2338.5,2337.5,0.55961271]
[1773693756601,1.1822828,2338.3,2337.5,0.55961271]
[1773693757702,1.1822828,2338.3,2337.6,0.77160614]
[1773693758095,1.1822828,2338.3,2337.7,0.55727448]
[1773693760106,2.35168503,2338.5,2337.9,0.54105446]
[1773693760403,1.1822828,2338.4,2337.9,0.54105446]
[1773693760803,1.1822828,2338.4,2337.8,0.21386]
[1773693761003,1.1822828,2338.4,2337.8,0.53394661]
[1773693761303,1.1822828,2338.4,2337.4,0.53394661]
[1773693761500,1.1822828,2338.4,2337.6,0.53088513]
[1773693764700,1.1822828,2338.4,2337.4,0.52344844]
[1773693764904,1.1822828,2338.4,2337.1,0.52461034]
[1773693768207,1.1822828,2338.2,2337.1,0.52461034]
[1773693768407,1.1822828,2338.0,2337.1,0.52461034]
[1773693768602,1.1822828,2338.0,2337.0,0.21393]
[1773693768807,1.1822828,2338.0,2336.9,0.52673795]
[1773693769206,1.1822828,2338.0,2337.0,0.54824372]
[1773693769911,1.1822828,2338.0,2337.2,0.54524958]
[1773693770407,1.1822828,2338.0,2337.1,0.21392]
[1773693770816,1.1822828,2338.0,2337.1,0.75611093]
[1773693771213,1.1822828,2338.0,2337.2,0.54087177]
[1773693775523,1.1822828,2338.0,2337.4,0.53032914]
[1773693777122,1.1822828,2338.0,2337.5,0.21389]
[1773693778730,1.1822828,2338.0,2337.6,0.49508064]
[1773693778929,1.07232888,2338.4,2337.6,0.49508064]
[1773693779132,1.07232888,2338.4,2337.7,0.21387]
[1773693779328,1.07232888,2338.4,2337.7,1.30801008]
[1773693781634,1.07232888,2338.4,2337.7,0.21387]
[1773693781828,1.07232888,2338.4,2337.4,1.09414008]
[1773693782829,1.07232888,2338.4,2337.2,1.30805008]
[1773693785329,1.07232888,2338.1,2337.0,1.09414008]
[1773693787237,1.07232888,2337.9,2337.0,1.09414008]
[1773693787537,1.07232888,2337.9,2336.9,0.00553392]
[1773693788036,1.07232888,2337.9,2336.9,1.099674]
[1773693793138,1.07232888,2337.7,2336.9,0.00553392]
[1773693793843,1.07232888,2337.7,2337.0,1.09414008]
[1773693794343,1.07232888,2337.7,2336.9,0.00553392]
[1773693794939,1.07232888,2337.7,2336.9,1.099674]
[1773693795337,1.07232888,2337.7,2337.0,1.30807008]
[1773693800844,1.07232888,2337.7,2337.0,0.21393]
[1773693802048,1.07232888,2337.7,2336.9,1.099674]
[1773693803452,1.12595431,2337.5,2336.9,1.099674]
[1773693804456,1.12595431,2337.3,2336.7,1.10441904]
[1773693805250,1.12595431,2337.3,2336.5,1.31838904]
[1773693805447,1.12896394,2337.3,2336.5,1.32272827]
[1773693805758,0.00300963,2337.3,2336.7,1.10441904]
[1773693806249,1.12896394,2337.3,2336.7,1.10441904]
[1773693809755,1.12595431,2337.5,2336.9,1.10441904]
[1773693810754,1.12986404,2337.5,2336.9,1.10441904]
[1773693811857,1.12986404,2337.5,2336.6,1.10441904]
[1773693812261,0.00390973,2337.5,2336.9,1.31835904]
[1773693815054,1.12595431,2337.9,2337.3,1.10441904]
[1773693815859,1.12595431,2338.3,2337.5,1.10441904]
[1773693816055,1.12595431,2338.1,2337.5,1.10441904]
[1773693816961,0.00329275,2338.3,2337.5,1.10441904]
[1773693817465,5.77890551,2338.3,2337.5,1.10441904]
[1773693817661,1.12595431,2338.2,2337.5,1.10441904]
[1773693817859,1.12595431,2338.1,2337.5,1.10441904]
[1773693820067,1.12595431,2338.2,2337.5,1.10441904]
[1773693820265,0.00329275,2338.3,2337.5,1.10441904]
[1773693820565,1.12924706,2338.3,2337.5,1.10441904]
[1773693829873,1.12924706,2338.3,2337.4,0.2139]
[1773693830085,1.12595431,2337.9,2337.3,1.10441904]
[1773693830587,1.12595431,2338.2,2337.4,1.10441904]
[1773693832583,2.42786115,2338.2,2337.4,1.10441904]
[1773693832785,0.98620012,2338.1,2337.4,1.10441904]
[1773693836781,0.98620012,2338.1,2337.3,1.51580684]
[1773693836782,0.98620012,2338.1,2337.3,0.2139]
[1773693836986,1.00252958,2337.9,2337.3,1.25919251]
[1773693840592,1.00252958,2337.9,2337.1,1.04529251]
[1773693840888,1.00252958,2337.7,2337.1,1.04529251]
[1773693841886,1.00252958,2338.1,2337.5,1.04529251]
[1773693842292,1.00252958,2337.9,2337.5,1.04529251]
[1773693843089,1.00252958,2337.9,2337.4,1.04529251]
[1773693843594,1.00252958,2337.9,2337.0,1.04529251]
[1773693843790,0.00329275,2338.3,2337.0,1.04529251]
[1773693843791,1.00252958,2337.7,2337.0,1.04529251]
[1773693852103,1.00252958,2338.0,2337.3,1.04529251]
[1773693852297,0.00329275,2338.3,2337.2,1.51582684]
[1773693852298,0.00329275,2338.3,2337.7,1.04529251]
[1773693852504,1.00252958,2338.9,2338.1,0.7235524]
[1773693852702,1.00252958,2339.1,2338.5,0.7235524]
[1773693852902,1.00252958,2339.1,2338.3,0.72340091]
[1773693853198,1.00252958,2338.9,2338.3,0.72340091]
[1773693853607,1.00614213,2338.9,2338.3,0.72797338]
[1773693855806,1.00252958,2338.5,2337.5,0.7157137]
[1773693856708,1.00252958,2338.3,2337.5,0.7157137]
[1773693857004,1.00252958,2338.3,2337.5,0.71975403]
[1773693858204,1.00252958,2337.9,2337.5,0.00404033]
[1773693858508,1.00252958,2337.9,2337.3,0.72042986]
[1773693859605,1.00252958,2337.9,2337.3,0.0044833]
[1773693862409,1.00844572,2337.7,2337.3,0.0044833]
[1773693864207,1.00844572,2337.7,2337.0,0.71745439]
[1773693865111,1.00844572,2337.7,2337.0,0.72273429]
[1773693868414,1.00844572,2338.1,2337.2,0.70374092]
[1773693868610,1.00844572,2337.9,2337.2,0.70374092]
[1773693868805,1.00844572,2337.9,2337.1,0.21392]
[1773693869414,1.00844572,2337.7,2337.0,0.69605894]
[1773693870115,1.00844572,2337.7,2337.0,0.0052799]
[1773693874713,1.00844572,2337.7,2337.0,0.69517421]
[1773693876815,1.00844572,2337.7,2336.8,0.69067847]
[1773693877520,1.00844572,2337.7,2336.6,0.69033338]
[1773693878024,1.00844572,2337.7,2336.8,0.69000625]
[1773693880221,1.00844572,2337.7,2336.7,0.21396]
[1773693880411,1.00844572,2337.7,2336.8,0.67731146]
[1773693881322,1.00844572,2337.7,2336.7,0.21396]
[1773693881515,1.00844572,2337.7,2336.6,0.68258149]
[1773693883320,1.00844572,2337.5,2336.6,0.68258149]
[1773693885520,1.00844572,2337.3,2336.6,0.00500678]
[1773693886210,1.00844572,2337.1,2336.6,0.00500678]
[1773693886411,1.01246327,2337.1,2336.6,0.00500678]
[1773693886816,1.01246327,2337.1,2336.5,0.67842397]
[1773693887816,1.01246327,2337.1,2336.5,0.68352405]
[1773693891421,0.00401755,2337.1,2336.5,0.68352405]
[1773693893720,0.00401755,2337.1,2336.7,0.66086815]
[1773693893921,1.08044885,2337.2,2336.7,0.66086815]
[1773693894821,1.08483208,2337.2,2336.7,0.66086815]
[1773693899324,1.07223559,2337.7,2336.9,0.66060692]
[1773693899524,1.07223559,2337.5,2336.9,0.66060692]
[1773693900420,1.07223559,2338.0,2337.3,0.65765826]
[1773693901528,1.07753996,2338.0,2337.3,0.65765826]
[1773693903729,1.07223559,2338.5,2337.7,0.65537949]
[1773693904627,1.0773534,2338.5,2337.7,0.65537949]
[1773693904834,1.0773534,2338.5,2337.9,0.65554017]
[1773693907438,1.0773534,2338.5,2337.5,0.64649814]
[1773693907828,1.0773534,2338.5,2337.6,0.64672345]
[1773693910633,1.0773534,2338.5,2337.8,0.65497038]
[1773693912337,1.0773534,2338.5,2337.3,0.64801892]
[1773693912538,1.0773534,2338.5,2337.5,0.64801892]
[1773693914439,1.0773534,2338.5,2337.6,0.21388]
[1773693914639,1.0773534,2338.5,2337.7,0.65143049]
[1773693915740,1.0773534,2338.5,2337.9,0.65074835]
[1773693920139,0.00511781,2338.5,2337.9,0.65074835]
[1773693920346,1.06844895,2338.7,2338.1,0.75932725]
[1773693920847,1.07223559,2339.5,2338.7,0.65500675]
[1773693921050,1.07223559,2339.5,2337.9,0.65500675]
[1773693921051,1.07223559,2339.4,2337.9,0.65500675]
[1773693921242,1.0764338,2339.4,2337.9,0.65947225]
[1773693921642,1.07223559,2339.1,2337.9,0.0044655]
[1773693921843,1.07223559,2339.1,2337.9,0.64563444]
[1773693922846,0.98559516,2339.0,2338.0,0.63816453]
[1773693924450,0.98559516,2339.0,2337.9,1.96971185]
[1773693925654,0.98559516,2338.8,2337.9,0.66928918]
[1773693926451,0.98559516,2338.8,2338.1,1.96493589]
[1773693926647,0.98559516,2338.8,2338.2,0.66404626]
[1773693929155,0.98559516,2338.8,2338.0,0.67114328]
[1773693929754,0.98559516,2338.6,2337.9,0.0044655]
[1773693930348,0.98559516,2338.3,2337.3,0.88900478]
[1773693930554,0.98559516,2338.3,2337.4,0.67466971]
[1773693931049,0.98559516,2338.3,2337.5,0.67872648]
[1773693931454,0.98559516,2338.3,2337.5,0.68346469]
[1773693938465,0.98559516,2338.3,2337.5,0.00473821]
[1773693938865,0.98559516,2338.3,2337.5,0.69919537]
[1773693940266,0.98559516,2338.3,2337.5,0.00473821]
[1773693940765,0.98559516,2338.3,2337.5,0.69835239]
[1773693941358,0.98559516,2338.3,2337.7,0.69364325]
[1773693942756,0.98559516,2338.3,2337.5,0.00473821]
[1773693946770,0.98559516,2338.3,2337.5,0.71013831]
[1773693954571,0.98559516,2338.3,2337.5,0.00473821]
[1773693954971,0.98559516,2338.3,2337.5,0.70600995]
[1773693958775,0.98559516,2338.3,2337.5,0.00473821]
[1773693958971,1.00244327,2338.1,2337.3,0.2139]
[1773693959573,1.00244327,2337.9,2336.9,0.70499217]
[1773693959980,1.00244327,2337.9,2336.9,0.70834144]
[1773693963391,1.00244327,2337.8,2336.9,0.70834144]
[1773693965592,1.00244327,2337.8,2336.9,0.00334927]
[1773693966289,1.02071017,2337.9,2337.0,0.71023559]
[1773693966488,1.07647316,2339.0,2337.9,0.21385]
[1773693966690,1.07647316,2338.8,2337.6,1.30042267]
[1773693966892,1.07647316,2338.6,2337.5,0.00087837]
[1773693969195,1.07647316,2338.6,2337.6,1.31375323]
[1773693971598,1.07983199,2338.4,2337.3,0.2139]
[1773693971900,1.07983199,2338.2,2337.3,0.2139]
[1773693972494,1.07983199,2338.2,2337.4,1.30042267]
[1773693974196,1.07983199,2338.2,2337.4,1.40802267]
[1773693974395,1.00244327,2339.0,2338.0,2.43147556]
[1773693974597,1.00244327,2338.8,2338.2,2.32433556]
[1773693974903,1.00244327,2338.8,2338.2,1.02391289]
[1773693975497,1.00244327,2338.8,2338.0,2.32433556]
[1773693976997,1.00244327,2340.2,2339.5,1.02391289]
[1773693977200,1.00244327,2340.8,2339.9,1.02391289]
[1773693977899,1.00587132,2340.8,2339.9,0.00404433]
[1773693978103,1.00244327,2340.4,2339.4,1.02391289]
[1773693978398,1.00244327,2340.4,2339.5,1.02391289]
[1773693978994,0.00342805,2340.8,2340.1,1.02391289]
[1773693981091,1.00587132,2340.8,2340.1,1.02391289]
[1773693984905,1.00587132,2340.8,2339.5,0.0038156]
[1773693985104,1.00587132,2340.8,2339.6,1.01137427]
[1773693991607,1.00587132,2340.8,2339.5,0.0038156]
[1773693997312,5.74123414,2340.7,2339.5,0.0038156]
[1773693997509,1.0151598,2340.6,2339.5,0.0038156]
[1773693998815,1.0151598,2340.4,2339.5,1.01518987]
[1773693999707,1.0151598,2340.4,2339.5,0.0038156]
[1773694000609,1.0151598,2340.2,2338.9,1.22513427]
[1773694001511,1.0151598,2340.2,2338.9,1.22844412]
[1773694003713,1.0151598,2340.0,2338.9,1.22844412]
[1773694005118,1.0151598,2339.8,2338.9,0.00330985]
[1773694005317,1.0151598,2340.5,2339.2,1.01137427]
[1773694005616,1.0151598,2340.5,2338.9,0.00330985]
[1773694005617,1.0151598,2340.3,2339.4,1.01137427]
[1773694008921,1.0151598,2340.7,2339.6,1.01137427]
[1773694009116,1.0151598,2340.5,2339.6,1.01137427]
[1773694015223,5.74992292,2340.4,2339.6,1.01137427]
[1773694015423,0.94885431,2340.3,2339.6,1.01137427]
[1773694017822,0.00342805,2340.8,2339.8,0.96162691]
[1773694017823,1.02744467,2340.8,2339.8,0.96162691]
[1773694018025,1.02401662,2340.7,2339.8,0.96162691]
[1773694018521,0.00342805,2340.8,2339.8,0.96162691]
[1773694018724,1.02744467,2340.8,2339.9,0.96162691]
[1773694018923,1.02744467,2340.8,2339.9,1.07021691]
[1773694019124,1.02744467,2340.8,2339.9,1.06862691]
[1773694019425,1.02744467,2340.8,2339.9,1.28229691]
[1773694019629,1.02744467,2340.8,2340.0,1.07026691]
[1773694022630,1.02744467,2340.8,2340.2,0.96162691]
[1773694022826,1.02744467,2340.8,2340.2,1.07163691]
[1773694024231,1.02744467,2340.8,2340.2,0.96162691]
[1773694025022,1.02744467,2340.8,2340.4,0.96162691]
[1773694025633,1.02744467,2340.8,2340.3,1.17525691]
[1773694028437,1.02401662,2341.4,2340.3,1.17525691]
[1773694028632,1.02401662,2341.2,2340.3,1.17525691]
[1773694029334,1.02401662,2341.0,2339.8,1.17529691]
[1773694029540,1.02886118,2341.0,2339.8,1.17529691]
[1773694029735,1.02886118,2341.0,2340.2,0.21364]
[1773694030034,1.02886118,2341.0,2340.3,0.96162691]
[1773694030438,0.00484456,2341.0,2340.5,0.96162691]
[1773694030642,1.02401662,2341.2,2340.5,0.96162691]
[1773694031542,1.02730404,2341.2,2340.5,0.96162691]
[1773694035850,1.02730404,2341.2,2340.5,1.06872691]
[1773694036147,1.02730404,2341.2,2340.5,1.06869691]
[1773694036347,0.00328742,2341.2,2340.7,0.96162691]
[1773694036546,1.02730404,2341.2,2340.7,1.07394904]
[1773694036949,1.02730404,2341.2,2340.7,0.96658904]
[1773694038048,1.02401662,2341.4,2340.7,0.96658904]
[1773694038745,1.13418122,2342.0,2340.7,0.96658904]
[1773694038948,1.02401662,2341.8,2340.7,0.96658904]
[1773694039144,1.02711363,2341.8,2340.7,0.96658904]
[1773694042753,0.97250447,2341.7,2340.7,0.96658904]
[1773694044244,0.97250447,2341.4,2340.7,0.00496213]
[1773694044446,0.97250447,2341.2,2340.2,0.93849065]
[1773694044648,0.00309701,2341.8,2340.9,0.93849065]
[1773694044948,0.97560148,2341.8,2341.2,0.93849065]
[1773694045548,0.97560148,2341.8,2341.2,0.94321195]
[1773694046151,0.97560148,2341.8,2341.2,0.0047213]
[1773694047848,2.27302075,2341.8,2341.2,0.0047213]
[1773694048150,0.97250447,2341.7,2340.9,0.93849065]
[1773694048544,0.97250447,2341.7,2341.0,0.93849065]
[1773694048951,0.97250447,2341.7,2341.0,0.94174398]
[1773694053553,0.97250447,2341.7,2341.0,0.00325333]
[1773694054556,0.97250447,2341.2,2340.6,0.93849065]
[1773694055250,9.16891748,2341.8,2340.7,0.93849065]
[1773694055251,3.57191748,2341.8,2340.7,0.93849065]
[1773694055446,0.97250447,2341.6,2340.7,0.9439723]
[1773694055647,0.97250447,2341.6,2340.9,0.93849065]
[1773694057852,0.97560148,2341.8,2340.9,0.93849065]
[1773694059363,0.97250447,2341.6,2340.9,0.93849065]
[1773694061558,0.97250447,2341.6,2340.7,0.21907165]
[1773694061863,0.97250447,2341.4,2340.7,0.00548165]
[1773694062062,0.97250447,2341.4,2340.7,0.9439723]
[1773694063058,5.597,2341.7,2340.5,0.21574449]
[1773694063059,0.97250447,2341.2,2340.5,0.93849065]
[1773694063462,0.00309701,2341.8,2341.1,0.93849065]
[1773694063760,0.97560148,2341.8,2341.1,0.93849065]
[1773694064159,0.97560148,2341.8,2341.1,0.94259027]
[1773694065364,0.97250447,2342.0,2341.5,0.93849065]
[1773694066366,0.97551115,2342.0,2341.2,1.15204065]
[1773694068665,0.97250447,2341.8,2341.2,0.93849065]
[1773694069663,0.97250447,2341.7,2341.2,0.93849065]
[1773694070666,0.97250447,2341.7,2341.1,0.94259027]
[1773694080968,0.97250447,2341.7,2340.8,0.9336525]
[1773694081371,5.85317396,2341.6,2340.8,0.9336525]
[1773694081568,0.99701541,2341.5,2340.8,0.9336525]
[1773694081969,0.99701541,2341.5,2340.8,0.93809856]
[1773694082269,0.99701541,2341.5,2340.8,0.00444606]
[1773694082467,0.99701541,2341.5,2340.6,0.9336525]
[1773694082667,0.99701541,2341.3,2340.3,0.9336525]
[1773694082972,0.99701541,2341.1,2340.3,0.9336525]
[1773694083168,0.99701541,2340.9,2340.3,0.9336525]
[1773694083369,0.99701541,2340.8,2340.3,0.9336525]
[1773694083670,0.99701541,2340.8,2340.3,0.93625034]
[1773694085473,0.99701541,2340.8,2340.3,0.87865034]
[1773694085774,0.99701541,2341.4,2340.5,0.9336525]
[1773694085969,0.99701541,2341.2,2340.5,0.9336525]
[1773694086176,5.597,2341.3,2340.7,0.9336525]
[1773694087571,0.99701541,2341.4,2340.7,0.9336525]
[1773694087772,6.59401541,2341.4,2340.7,0.9336525]
[1773694087967,6.59401541,2341.4,2340.7,1.0406025]
[1773694088374,6.59401541,2341.4,2340.9,1.0412425]
[1773694088570,0.99701541,2341.6,2340.9,0.9336525]
[1773694090969,5.597,2341.5,2340.9,0.9336525]
[1773694091169,0.99701541,2341.6,2341.1,0.9336525]
[1773694091772,1.00002209,2342.0,2341.3,0.9336525]
[1773694095474,1.00002209,2342.0,2341.2,1.1472025]
[1773694095672,0.99701541,2341.8,2341.2,1.1472025]
[1773694096070,0.99701541,2341.8,2341.0,0.9336525]
[1773694097474,0.99701541,2341.6,2341.0,0.9336525]
[1773694098673,0.99701541,2341.6,2340.7,0.21359]
[1773694098976,5.597,2341.7,2339.8,27.81942]
[1773694098977,0.99701541,2341.2,2340.4,0.9336525]
[1773694099276,0.99701541,2341.2,2340.4,1.14994004]
[1773694099882,0.99701541,2341.1,2340.4,0.9336525]
[1773694100171,0.99701541,2341.0,2340.3,0.93625034]
[1773694101575,5.596,2341.2,2340.4,0.21362]
[1773694101776,5.596,2341.2,2340.5,0.9336525]
[1773694101979,0.99701541,2341.1,2340.5,0.9336525]
[1773694104289,0.88642692,2341.6,2340.7,0.98051937]
[1773694104584,0.88642692,2341.4,2340.7,0.98051937]
[1773694110186,0.88642692,2341.4,2340.6,1.19411937]
[1773694127596,0.88642692,2341.8,2340.6,1.19411937]
[1773694127796,0.88642692,2341.6,2340.6,1.19411937]
[1773694132503,0.88642692,2341.6,2340.7,0.93248231]
[1773694133303,0.88642692,2341.6,2340.7,0.82534231]
[1773694135293,6.94735858,2341.5,2340.7,0.82534231]
[1773694135498,0.83341293,2341.5,2340.7,0.82534231]
[1773694140812,0.82832057,2341.3,2340.7,0.82534231]
[1773694144700,0.82832057,2341.8,2340.7,0.82534231]
[1773694144900,0.82832057,2341.6,2340.7,0.82534231]
[1773694145102,0.82832057,2341.4,2340.7,0.82534231]
[1773694151714,0.82832057,2341.4,2340.9,0.99136366]
[1773694152213,0.82832057,2341.4,2340.9,0.88398366]
[1773694154618,0.82832057,2341.7,2340.9,0.88398366]
[1773694154817,6.96320023,2341.6,2340.9,0.88398366]
[1773694155013,6.13487966,2341.5,2340.9,0.88398366]
[1773694155319,6.96320023,2341.5,2340.9,0.88398366]
[1773694155513,0.82832057,2341.5,2340.9,0.88398366]
[1773694155818,0.82832057,2341.5,2340.8,1.09757366]
[1773694157520,0.82832057,2341.5,2340.8,1.20442366]
[1773694157720,0.82832057,2341.5,2340.8,1.20435366]
[1773694157923,0.82832057,2341.5,2340.9,0.99089366]
[1773694158120,0.82832057,2341.5,2340.9,0.88398366]
[1773694164230,0.82832057,2341.5,2340.9,0.99220366]
[1773694168331,0.82832057,2341.5,2340.9,0.88398366]
[1773694168531,0.82832057,2341.5,2340.9,0.99083366]
[1773694171933,0.82832057,2341.5,2340.9,0.88398366]
[1773694172331,0.82832057,2341.5,2340.8,0.21359]
[1773694172532,0.82832057,2341.5,2340.8,1.01707485]
[1773694173231,0.82832057,2341.5,2340.9,0.80348485]
[1773694173432,0.82832057,2341.5,2340.9,0.91109485]
[1773694174036,0.82832057,2341.5,2340.9,0.80348485]
[1773694178440,0.79310658,2341.3,2340.9,0.80348485]
[1773694179334,0.79310658,2341.7,2340.9,0.80348485]
[1773694179530,0.79310658,2341.5,2340.9,0.80348485]
[1773694181934,0.79310658,2341.7,2341.1,0.80348485]
[1773694182238,6.93448807,2341.6,2341.1,0.80348485]
[1773694182438,0.79310658,2341.6,2341.1,0.80348485]
[1773694182638,0.79310658,2341.6,2341.1,0.91077485]
[1773694183040,0.79310658,2341.6,2341.1,0.80348485]
[1773694183539,0.79310658,2341.5,2341.1,0.80348485]
[1773694183740,0.79310658,2341.5,2341.1,0.91028485]
[1773694184342,0.79310658,2341.6,2341.1,0.91028485]
[1773694186046,0.79310658,2341.6,2341.1,0.80348485]
[1773694186241,0.79310658,2341.6,2341.1,0.91040485]
[1773694186646,0.79310658,2341.6,2341.1,0.10796]
[1773694186850,0.79310658,2341.4,2341.1,0.10796]
[1773694187350,0.79310658,2341.4,2341.1,0.91144485]
[1773694188350,0.79310658,2341.7,2341.1,0.91144485]
[1773694188551,0.79310658,2341.5,2341.1,0.80348485]
[1773694192247,0.79310658,2341.7,2341.1,0.80348485]
[1773694192443,6.13937832,2341.6,2341.1,0.80348485]
[1773694192847,6.93334495,2341.6,2341.1,0.80348485]
[1773694193052,0.79396663,2341.6,2341.1,0.80348485]
[1773694194052,6.93356785,2341.5,2341.1,0.80348485]
[1773694194249,0.79396663,2341.5,2341.1,0.80348485]
[1773694194753,0.79396663,2341.5,2341.0,1.00785524]
[1773694195154,0.79396663,2341.5,2341.1,0.79428524]
[1773694196851,0.79396663,2341.5,2341.1,0.90155524]
[1773694197450,0.76312314,2341.7,2341.1,0.90155524]
[1773694197656,6.87658983,2341.6,2341.1,0.90155524]
[1773694197850,0.76312314,2341.6,2341.1,0.90155524]
[1773694199751,1.30031278,2342.0,2341.5,2.30482797]
[1773694199752,0.00300668,2342.0,2341.5,2.30482797]
[1773694199956,6.87601106,2342.2,2341.6,0.79400187]
[1773694200256,6.87601106,2342.2,2341.6,0.90223187]
[1773694200257,0.76312314,2342.2,2341.6,0.90223187]
[1773694200759,0.76312314,2342.4,2341.8,0.90246187]
[1773694200952,0.7666923,2342.4,2341.8,0.90246187]
[1773694201352,0.7666923,2342.4,2341.8,0.79400187]
[1773694201557,0.7666923,2342.4,2341.8,0.90077187]
[1773694201858,0.7666923,2342.4,2341.8,0.90074187]
[1773694202955,0.76312314,2343.2,2342.3,0.90212187]
[1773694203161,0.76312314,2343.2,2342.5,0.90142187]
[1773694203357,0.76312314,2343.2,2341.9,10.33372893]
[1773694203358,0.76312314,2343.2,2342.7,0.79400187]
[1773694203556,0.76312314,2343.9,2343.2,0.79400187]
[1773694204061,0.76810114,2343.9,2343.2,0.79895135]
[1773694204560,2.06540724,2343.9,2343.2,0.00494948]
[1773694204855,0.76312314,2343.4,2342.6,0.79400187]
[1773694205254,0.76312314,2343.4,2342.7,0.79400187]
[1773694205653,0.76312314,2343.4,2342.7,0.79762043]
[1773694206058,2.06042924,2343.4,2342.7,0.00361856]
[1773694206261,0.76312314,2343.6,2342.8,0.79400187]
[1773694206455,0.004978,2343.9,2342.8,0.79400187]
[1773694206456,0.76810114,2343.9,2342.9,0.79400187]
[1773694206661,0.76810114,2343.9,2343.1,0.79400187]
[1773694206861,0.76810114,2343.9,2343.3,0.79400187]
[1773694206862,0.004978,2343.9,2343.3,0.79400187]
[1773694207256,0.76312314,2343.8,2342.9,0.79400187]
[1773694209064,0.76312314,2343.5,2342.8,0.21237407]
[1773694209265,0.76312314,2343.5,2342.7,0.79762043]
[1773694210770,0.76810114,2343.9,2342.9,0.79400187]
[1773694211965,0.76810114,2343.9,2343.2,1.2973061]
[1773694212174,0.76810114,2343.9,2343.3,0.79400187]
[1773694212470,0.2092929,2344.9,2343.9,0.79400187]
[1773694212471,0.76312314,2344.9,2343.9,0.79400187]
[1773694212668,0.76312314,2344.9,2344.1,0.79400187]
[1773694213267,0.76312314,2344.7,2344.1,0.79400187]
[1773694213470,0.76847245,2344.7,2344.1,0.79400187]
[1773694214075,0.76312314,2344.3,2343.7,0.79400187]
[1773694216269,1.2973061,2344.1,2343.3,0.79400187]
[1773694216475,0.76312314,2344.0,2343.3,0.79400187]
[1773694217374,0.76312314,2344.4,2343.5,0.79400187]
[1773694218177,0.76312314,2344.4,2343.7,0.79400187]
[1773694219572,0.76312314,2344.4,2343.9,0.79400187]
[1773694219878,0.76312314,2344.3,2343.3,0.79400187]
[1773694220879,0.76312314,2344.1,2343.3,0.79400187]
[1773694221377,0.76312314,2343.9,2343.3,0.79400187]
[1773694221575,0.76312314,2343.9,2343.1,0.79400187]
[1773694227578,0.73816556,2344.6,2343.2,0.78703229]
[1773694228177,0.00534931,2344.7,2343.2,0.78703229]
[1773694228178,0.73816556,2344.4,2343.2,0.78703229]
[1773694228980,0.73816556,2344.4,2343.4,0.78703229]
[1773694232288,0.73816556,2344.4,2343.6,0.78703229]
[1773694232584,0.73816556,2344.6,2343.6,0.78703229]
[1773694232788,0.00534931,2344.7,2344.0,0.78703229]
[1773694233283,0.00534931,2344.7,2344.0,0.89428229]
[1773694233884,0.00534931,2344.7,2344.0,0.78703229]
[1773694234085,0.00534931,2344.7,2344.0,0.89460229]
[1773694234282,0.74351487,2344.7,2343.5,0.78703229]
[1773694234680,0.74351487,2344.7,2343.6,0.78703229]
[1773694235389,0.73816556,2344.5,2343.6,0.78703229]
[1773694239786,0.73816556,2344.6,2343.8,0.78703229]